{"text_format":"2","workbook":"xlsx","n_sheets":3,"sheets":["消费者APP","店铺后台","平台后台"],"not_rendered":{"charts":0,"images":2,"macros":0,"external_links":0,"defined_names":0,"comments":0,"pivot_tables":0},"unopened":[],"bounds":{"document_bytes":16777216,"sheet_cells":100000,"run_cost":"one","rows_first":2000,"rows_last":500,"rows_between":2000,"halvings":0,"cell_chars":16384,"cell_head_chars":4096},"cells_cut":0,"cells_raw":0,"read":"whole","date_system":"1900"}

{"sheet":"消费者APP","index":0,"n_rows":99,"n_cols":5,"rows_kept":99,"cut":false,"hidden":false,"merged":[[1,1,4,1],[5,1,6,1],[7,1,11,1],[12,1,26,1],[27,1,34,1],[35,1,43,1],[44,1,50,1],[51,1,55,1],[56,1,59,1],[60,1,67,1],[68,1,75,1],[76,1,81,1],[82,1,98,1],[82,2,90,2]]}
["序号","一级菜单","二级菜单","内容"]
[{"$f":"ROW()-1","v":1},"★商城首页","首页搜索栏","1、首页顶部固定显示，默认显示提示文字：搜索兽药、饲料、店铺；\n2、点击进入搜索输入页"]
[{"$f":"ROW()-1","v":2},null,"banner轮播","多张图片循环播放展示"]
[3,null,"商城类目导航","展示一级分类，最后一个是“更多”，点击“更多”进入分类页面"]
[4,null,"热销商品","1、展示热销商品列表，列表按销量排序；\n2、列表展示主图、名称、售价、店铺，点击进入商品详情内页"]
[5,"搜索输入页","搜索栏","1、顶部：返回按钮、搜索输入框、清空图标、搜索按钮；\n2、支持文字输入、键盘回车搜索，输入为空不跳转；"]
[6,null,"搜索历史","下方展示搜索历史（按时间倒序），支持单条删除、全部清空；"]
[7,"搜索结果展示页","重新搜索框","点击直接跳转至搜索输入页，搜索框内保留已输文字"]
[8,null,"按销量/按价格/店铺切换","1、仅匹配一类标签\n2、按销量：商品销量从多到少排序；\n3、按价格：可选商品价格从低到高/从高到低排序；\n4、店铺：店铺入驻时间从长到短排序"]
[9,null,"商品列表","展示主图、名称、售价、店铺，点击进入商品详情内页"]
[10,null,"店铺列表","展示头像、名称、评分、粉丝数，点击进入店铺主页"]
[11,null,"无匹配","显示 “暂无相关”"]
[{"$f":"ROW()-1","v":12},"商品详情内页","商品图片轮播","如有视频则作为商品主图展示，多张图片循环播放"]
[13,null,"商品基本信息","最低价格、商品名称、商品简述、库存、销量"]
[14,null,"商品参数","展示商品的各项属性"]
[15,null,"物流说明","承诺发货时间、运费、发货地"]
[16,null,"服务说明","极速退款/运费险/7天无理由退换货等"]
[17,null,"商品评价","1、展示2条评价记录，用户头像、评价内容、商品图片，点击全部后进入全部评价页面；\n2、全部评价页面：展示全部评价记录列表，列表展示用户头像、评价内容、商品图片，列表按最新提交时间倒序排列\n3、支持其他用户在商品评价下评论"]
[18,null,"图文详情","展示商品细节图片或文字描述"]
[19,null,"商品状态","1、商品下架后，提示下架，无法购买所有款式规格的商品，无法加入购物车\n2、商品缺货后，缺货的规格会提示“缺货”，无法购买该款式规格的商品，无法加入购物车"]
[20,null,"加入购物车","1、选择每组商品规格、数量，点击加入购物车，加入购物车\n2、缺货的规格无法加入购物车"]
[21,null,"立即购买","1、选择每组商品规格、数量，计算商品总价，点击“立即购买”进入确认订单页\n2、缺货的规格会提示“缺货”，无法购买"]
[{"$f":"ROW()-1","v":22},null,"咨询商家客服","进入聊天页面，支持发送文字/语音/图片/视频/订单/商品"]
[23,null,"收藏商品/取消收藏","1、点击收藏，加入我的收藏；\n2、收藏后可取消收藏，移出我的收藏"]
[24,null,"记录浏览足迹","保留本次商品浏览记录，加入浏览足迹"]
[25,null,"进入店铺","展示头像、名称、评分、粉丝数，点击“进店”进入店铺主页"]
[26,null,"更多商品推荐","显示同店铺同分类商品，展示主图、名称、售价，点击进入商品详情内页"]
[27,"确认订单页（单商品）（取消支付前）","收货地址","选择和填写收货地址"]
[28,null,"商品信息","显示店铺头像、名称、商品主图、商品名称、商品规格、服务保障、数量、单价"]
[29,null,"修改商品数量","增加或减少商品数量，商品数量最少为1"]
[30,null,"订单总金额","商品总价+运费"]
[31,null,"备注","填写备注"]
[{"$f":"ROW()-1","v":32},null,"支付方式","支付方式：微信支付/支付宝支付（或者不需要选择调用支付接口时选择）"]
[33,null,"提交订单","点击“提交订单”后订单状态为“待付款”，自动生成订单编号、下单时间，更新库存（下单扣减库存）"]
[34,null,"支付","1、点击“提交订单”后，调用微信/支付宝完成支付，支付后自动生成生成支付时间、支付方式，订单状态更新为“待发货”；\n2、点击“提交订单”后又取消支付，订单开始15分钟倒计时，15分钟内未完成付款，则订单状态更新为“已取消”，且更新库存（取消订单返库存）"]
[35,"确认订单页（单商品）（取消支付后）","订单状态","取消支付后订单状态仍为“待付款”，显示15分钟倒计时"]
[36,null,"修改收货地址","显示提交订单时填写的的收货地址，支持修改1次收货地址"]
[37,null,"商品信息","显示店铺头像、名称、商品主图、商品名称、商品规格、服务保障、数量、单价"]
[38,null,"订单编号","1、显示提交订单时生成的订单编号、下单时间；\n2、支付后自动生成支付时间、支付方式"]
[39,null,"订单总金额","商品总价+运费"]
[40,null,"备注","显示提交订单时填写的备注"]
[41,null,"支付方式","支付方式：微信支付/支付宝支付"]
[{"$f":"ROW()-1","v":42},null,"支付","1、点击“付款”后，调用微信/支付宝完成支付；\n2、点击“付款”后又取消支付，继续剩余时间倒计时（不重新15分钟倒计时），剩余时间内未完成支付，则订单状态更新为“已取消”，且更新库存（取消订单返库存）"]
[43,null,"取消订单","选择取消原因，并更新库存（取消订单返库存）"]
[44,"超时未支付取消页面","订单状态","超时未支付的订单状态更新为“已取消”，显示取消原因"]
[45,null,"商品信息","显示店铺头像、名称、商品主图、商品名称、商品规格、服务保障、数量、单价"]
[46,null,"订单总金额","商品总价+运费"]
[47,null,"备注","显示提交订单时填写的备注"]
[48,null,"订单编号","显示提交订单时的订单编号、下单时间"]
[49,null,"再次购买","重新进入确认订单页，自动生成新的订单编号、下单时间"]
[50,null,"加入购物车","点击“加入购物车”，同款商品（包括规格和数量）加入购物车"]
[51,"店铺主页","店铺介绍","展示头像、名称、评分、粉丝数"]
[{"$f":"ROW()-1","v":52},null,"关注店铺/取消关注","1、点击“关注”，加入店铺关注；\n2、关注后可取消关注，移出店铺关注"]
[53,null,"店铺内全部商品分类浏览","同类商品按销量排序"]
[54,null,"店铺内搜索","点击进入店铺内搜索输入页\n搜索输入页：\n1、顶部：返回按钮、搜索输入框、清空图标、搜索按钮；\n2、支持文字输入、键盘回车搜索，输入为空不跳转；"]
[55,null,"商品详情","点击商品，进入该商品详情内页"]
[56,"★分类","商品搜索栏","1、顶部固定显示，默认显示提示文字：搜索兽药、饲料、店铺；\n2、点击进入搜索输入页"]
[57,null,"二级商品分类","展示农资全部分类类目，左右分栏布局，左侧大类、右侧小类"]
[58,null,"对应商品列表","点击小类快速切换对应商品列表"]
[59,null,"商品排序","商品列表支持价格、销量排序"]
[null,"★购物车","商品列表","显示店铺名称、商品主图、商品名称、商品规格、数量、单价"]
[{"$f":"ROW()-1","v":61},null,"商品勾选","支持商品勾选操作"]
[{"$f":"ROW()-1","v":62},null,"增减数量","可自由增减商品购买数量"]
[{"$f":"ROW()-1","v":63},null,"管理购物车","勾选单个或多个商品移出购物车；支持批量清理缺货商品/下架商品，取消个别勾选"]
[64,null,"跨店铺商品合并结算","支持跨店铺商品统一合并结算下单，计算"]
[65,null,"购物车商品库存校验","自动校验购物车内商品实时库存"]
[66,null,"缺货商品提醒","提醒商品缺货，点击进入商品详情内页"]
[67,null,"下架商品提醒","提醒商品已下架，点击进入商品详情内页"]
[68,"确认订单页（多商品）","收货地址","选择和填写统一的收货地址，不支持每种商品各自填写收货地址"]
[69,null,"商品信息","显示每种商品对应的店铺头像、名称、商品主图、商品名称、商品规格、服务保障、数量、单价"]
[70,null,"修改商品数量","支持增加或减少每种商品的数量，商品数量最少为1"]
[71,null,"订单总金额","商品总价+运费"]
[72,null,"备注","支持每种商品各自填写备注"]
[{"$f":"ROW()-1","v":73},null,"支付方式","选择统一的支付方式：微信支付/支付宝支付，不支持每种商品各自选择支付方式"]
[74,null,"提交订单","点击“提交订单”后订单状态为“待付款”，每种商品自动生成订单编号、下单时间"]
[75,null,"支付","1、点击“提交订单”后，调用微信/支付宝完成支付，支付后自动生成生成支付时间、支付方式，订单状态更新为“待发货”；\n2、点击“提交订单”后又取消支付，每种商品的订单开始15分钟倒计时，15分钟内未完成付款，则订单状态更新为“已取消”\n3、取消支付的订单自动拆开，后续每种商品可单独完成继续支付"]
[76,"★消息","站内消息","1、平台公告、商家入驻成功、商家入驻审核失败、实名认证成功、实名认证审核失败等；\n2、红点提醒有未读新消息"]
[77,null,"订单通知","1、发货通知、退款成功通知等；\n2、红点提醒有未读新消息"]
[78,null,"与商家的会话","1、会话列表，展示店铺头像、名称、最新一条消息内容及发送时间，列表按最新发送时间倒序排列，点击进入会话；\n2、支持删除聊天会话；\n3、数字角标提醒未读新消息数量"]
[79,null,"搜索聊天记录/店铺","搜索关键词，查找匹配聊天记录与对应店铺，点击直接进入聊天界面"]
[80,null,"发送消息","从列表进入会话，和店铺商家实时聊天咨询，支持发送文字/语音/图片/视频/订单/商品"]
[81,null,"消息处理","1、支持复制整条消息内容；\n2、支持删除单条消息；\n3、支持勾选多条消息批量删除"]
[82,"★个人中心","我的订单","1、数字角标提示待付款、待发货、待收货、退款/售后的订单数量，点击全部进入我的订单页面；\n2、我的订单页面：全部、待付款、待发货、待收货、退款/售后、评价、已取消，订单列表按下单时间排序，点击进入订单详情页面"]
[83,null,null,"3、待付款订单详情页面：\n（1）订单状态：“待付款”，显示15分钟倒计时\n（2）收货地址：显示提交订单时填写的的收货地址\n（3）商品信息：显示店铺头像、名称、商品主图、商品名称、商品规格、服务保障、数量、单价、运费、订单总金额、备注\n（4）订单编号：显示提交订单时生成的订单编号、下单时间；本次支付后自动生成支付时间、支付方式\n（5）可进行的操作：\n           修改收货地址（支持修改1次收货地址）\n           选择支付方式（选择微信支付/支付宝支付）\n           支付（点击“付款”后，调用微信/支付宝完成支付；点击“付款”后又取消支付，继续剩余时间倒计时（不重新15分钟倒计时），剩余时间内未完成支付，则订单状态更新为“已取消”）\n           取消订单（选择取消原因）"]
[84,null,null,"4、待发货订单详情页面：\n（1）订单状态：“待发货”\n（2）收货地址：显示最终填写的的收货地址\n（3）商品信息：显示店铺头像、名称、商品主图、商品名称、商品规格、服务保障、数量、单价、运费、订单总金额、备注\n（4）订单编号：显示提交订单时生成的订单编号、下单时间，支付后生成的支付时间、支付方式\n（5）可进行的操作：\n           申请退款（二次确认退款后，订单款项原路返还，订单状态更新为“退款/售后”，并更新库存（取消订单返库存））"]
[85,null,null,"5、待收货订单详情页面：\n（1）显示状态：“已发货”\n（2）物流节点：显示最新的物流节点信息\n（3）收货地址：显示最终填写的的收货地址\n（4）商品信息：显示店铺头像、名称、商品主图、商品名称、商品规格、服务保障、数量、单价、运费、订单总金额、备注\n（5）订单编号：显示提交订单时生成的订单编号、下单时间，支付后生成的支付时间、支付方式\n（6）可进行的操作：\n           查看物流（查看历史物流轨迹和节点）\n           确认收货（1.二次确认收货，订单状态更新为“待评价”，自动生成订单成交时间；2.确认收货并评价：自动生成订单成交时间，进入评价页面，打星和发布文本评价，支持发送图片或视频）"]
[86,null,null,"退款/售后页面分为进行中/已完结订单列表\n6、订单详情页面：\n（1）商家自动同意后（已完结）：\n              ①显示流程进度：商家处理->退款结束（此时处于退款结束阶段）； ②显示状态：“退款成功”，和钱款退回方式-退回金额；③售后信息：显示商品主图、商品名称、商品规格、协商历史（含卖家退款申请）、退款原因、申请金额、申请时间、退款完结时间、退款编号；\n（2）商家审核通过或系统自动同意前（进行中）：\n              ①显示流程进度：商家处理->退款结束（此时处于商家处理阶段）；②售后信息：显示商品主图、商品名称、商品规格、协商历史（含卖家退款申请、商家留言）、退款原因、申请金额、申请时间、退款编号； ③可进行的操作：撤销申请（撤销后可重新提交售后申请）\n（3）商家审核同意/系统到期自动同意后（已完结）：\n              ①显示流程进度：商家处理->退款结束（此时处于退款结束阶段）；②显示状态：“退款成功”，和钱款退回方式-退回金额；③售后信息：显示商品主图、商品名称、商品规格、协商历史（含卖家退款申请、商家留言、商家审核通过结果）、退款原因、申请金额、申请时间、退款完结时间、退款编号；\n（4）商家审核拒绝后（进行中）：\n              ①显示流程进度：商家处理->退款结束（此时处于商家处理阶段）； ②售后信息：显示商品主图、商品名称、商品规格、协商历史（含卖家退款申请、商家留言、商家审核拒绝结果+拒绝说明）、退款原因、申请金额、申请时间、退款编号；③可进行的操作：撤销申请（撤销后可重新提交售后申请）、平台介入\n（5）平台介入同意后（已完结）：\n              ①显示流程进度：商家处理->退款结束（此时处于退款结束阶段）；②显示状态：“退款成功”，和钱款退回方式-退回金额；③售后信息：显示商品主图、商品名称、商品规格、协商历史（含卖家退款申请、商家留言、商家审核通过结果）、退款原因、申请金额、申请时间、退款完结时间、退款编号；\n（6）平台介入拒绝后（已完结）：\n              ①显示流程进度：商家处理->退款结束（此时处于商家处理阶段+不通过图标）；②售后信息：显示商品主图、商品名称、商品规格、协商历史（含卖家退款申请、商家留言、商家审核拒绝结果+拒绝说明、平台介入审核拒绝结果+拒绝说明）、退款原因、申请金额、申请时间、退款编号；\n（7）商家审核通过或系统自动同意前（进行中）：\n              ①显示流程进度：商家处理->商品寄回->退款结束（此时处于商家处理阶段）；②售后信息：显示商品主图、商品名称、商品规格、协商历史（含卖家退款申请、商家留言）、退款原因、申请金额、申请时间、退款编号； ③可进行的操作：撤销申请（撤销后可重新提交售后申请）\n（8）商家审核同意/系统到期自动同意后（进行中）：\n              ①显示流程进度：商家处理->商品寄回->退款结束（此时处于商品寄回阶段）；②售后信息：显示商品主图、商品名称、商品规格、协商历史（含卖家退款申请、商家留言、商家审核通过结果）、退款原因、申请金额、申请时间、退款编号； ③可进行的操作：撤销申请（撤销后可重新提交售后申请）、上传单号\n（9）商家确认收货后（已完结）：\n              ①显示流程进度：商家处理->商品寄回->退款结束（此时处于退款结束阶段）；②售后信息：显示商品主图、商品名称、商品规格、协商历史（含卖家退款申请、商家留言、商家审核通过结果、商家确认收货）、退款原因、申请金额、申请时间、退款完结时间、退款编号；\n（10）商家审核拒绝后（进行中）：\n              ①显示流程进度：商家处理->商品寄回->退款结束（此时处于商家处理阶段）；②售后信息：显示商品主图、商品名称、商品规格、协商历史（含卖家退款申请、商家留言、商家审核拒绝结果+拒绝说明）、退款原因、申请金额、申请时间、退款编号；③可进行的操作：撤销申请（撤销后可重新提交售后申请）、平台介入\n（11）平台介入拒绝后（已完结）：\n              ①显示流程进度：商家处理->商品寄回->退款结束（此时处于商家处理阶段+不通过图标）； ②售后信息：显示商品主图、商品名称、商品规格、协商历史（含卖家退款申请、商家留言、商家审核拒绝结果+拒绝说明、平台介入审核拒绝结果+拒绝说明）、退款原因、申请金额、申请时间、退款编号；\n（12）平台介入同意后（进行中）：\n              ①显示流程进度：商家处理->商品寄回->退款结束（此时处于商品寄回阶段）； ②售后信息：显示商品主图、商品名称、商品规格、协商历史（含卖家退款申请、商家留言、商家审核拒绝结果+拒绝说明、平台介入审核通过结果）、退款原因、申请金额、申请时间、退款编号；③可进行的操作：撤销申请（撤销后可重新提交售后申请）、上传单号\n（13）商家确认收货后（已完结）：\n              ①显示流程进度：商家处理->商品寄回->退款结束（此时处于退款结束阶段）；②售后信息：显示商品主图、商品名称、商品规格、协商历史（含卖家退款申请、商家留言、商家审核拒绝结果+拒绝说明、平台介入审核通过结果、商家确认收货）、退款原因、申请金额、申请时间、退款完结时间、退款编号；\n",{"$f":"_xlfn.DISPIMG(\"ID_0C49B822D2ED4A359CD9BBE2547CF531\",1)","v":"=DISPIMG(\"ID_0C49B822D2ED4A359CD9BBE2547CF531\",1)"}]
[87,null,null,"评价页面分为待评价、已评价订单列表\n8、待评价订单详情页面：\n（1）显示状态：“交易成功”\n（2）收货地址：显示最终填写的的收货地址\n（3）商品信息：显示店铺头像、名称、商品主图、商品名称、商品规格、服务保障、数量、单价、运费、订单总金额、备注\n（4）订单编号：显示提交订单时生成的订单编号、下单时间，支付后生成的支付时间、支付方式，签收后生成的成交时间\n（5）可进行的操作：\n           1.评价（进入评价页面，打星和发布文本评价，支持发送图片或视频）\n           2.加入购物车（同款商品（包括规格和数量）加入购物车）\n           3.再买一单（进入商品详情内页）\n           4.申请售后（进入选择售后原因页面）\n9、已评价订单详情页面：\n（1）显示状态：“交易成功”\n（2）收货地址：显示最终填写的的收货地址\n（3）商品信息：显示店铺头像、名称、商品主图、商品名称、商品规格、服务保障、数量、单价、运费、订单总金额、备注\n（4）订单编号：显示提交订单时生成的订单编号、下单时间，支付后生成的支付时间、支付方式，签收后生成的成交时间\n（5）可进行的操作：\n           1.查看评价（查看评价内容和上传的图片）\n           2.再买一单（进入商品详情内页）\n           3.申请售后（进入选择售后原因页面）"]
[null,null,null,"10、评价页面：打星和发布文本评价，支持发送图片或视频"]
[null,null,null,"11、选择售后原因页面：选择仅退款/退货退款，其中仅退款需选择未收到货或已收到货的退款原因，点击下一步进入确认退款信息页面；退货退款需选择原因，点击下一步进入确认退款信息页面\n12、确认退款信息页面：\n（1）显示商品信息（商品主图、商品名称、商品规格、数量）、货物状态（未收到货/已收到货）、退款原因（可修改选项）、退款金额（可修改）；\n（2）上传描述和凭证：补充文本描述，支持上传图片；\n（3）提交申请，商家审核前状态为“进行中”，并通知商家，进入等待审核（商家同意则审核通过；拒绝则买家可修改重提、申请平台介入或接受拒绝结束；超时未处理则系统自动同意。审核通过或自动同意后按类型分流：仅退款进入退款流程，退货退款进入退货流程。平台介入后：支持买家则回到审核通过分支继续类型分流；支持商家则售后结束。）"]
[{"$f":"ROW()-1","v":90},null,null,"13、已取消订单详情页面：\n（1）订单状态：已取消\n（2）取消原因：超时未支付/买家主动取消\n（3）收货地址：提交最终填写的收货地址\n（4）商品信息：显示店铺头像、名称、商品主图、商品名称、商品规格、服务保障、数量、单价、运费、订单总金额、备注\n（7）订单编号：显示提交订单时的订单编号、下单时间\n（8）可进行操作：\n           再次购买（重新进入确认订单页，自动生成新的订单编号、下单时间）\n           加入购物车（点击“加入购物车”，该商品加入购物车）"]
[91,null,"我的收藏","1、收藏商品列表，列表按收藏时间倒序排列，点击进入商品详情内页；\n2、列表展示商品主图、商品名称、店铺名称、最低价\n3、下架商品提醒商品已下架"]
[92,null,"店铺关注","1、关注店铺列表，列表按关注时间倒序排列，点击进入店铺主页；\n2、列表展示头像、名称、评分、粉丝数"]
[93,null,"浏览足迹","1、已浏览商品列表，列表按浏览时间倒序排列，点击进入商品详情内页；\n2、列表展示浏览日期及该时间浏览的所有商品的主图和最低价"]
[94,null,"我的评价"]
[95,null,"收货地址","1、已添加地址列表，默认地址置顶，其余按添加时间倒序排列\n2、支持添加新地址，填写收货人、手机号码、所在地区、详细地址、是否设为默认地址，选择设为默认地址则自动将原默认地址设为非默认\n3、支持删除已添加的地址；\n4、支持将非默认地址设为默认地址，并自动将原默认地址设为非默认\n5、支持编辑已添加的地址，修改收货人、手机号码、所在地区、详细地址、是否设为默认地址，选择设为默认地址则自动将原默认地址设为非默认"]
[96,null,"实名认证","1、填写资料：个人姓名、证件类型（身份证）、证件号码、出生日期、证件有效期、手机号、居住地址、证件照正面、证件照反面；\n2、提交后显示多少天内审核；\n3、平台审核后把审核结果发送至站内消息，如果审核通过更新审核状态为“已认证”，审核不通过可重新填写后提交申请"]
[97,null,"商家入驻（前端入驻）","以下两种主体类型二选一\n1、个人入驻：\n（1）个人信息：证件类型（身份证）、姓名、证件号码、出生日期、证件有效期（区间有效/长期有效）、居住地址、性别、证件照正面照片、证件照反面照片；\n（2）经营信息：联系人信息（联系人姓名、联系人手机、联系人邮箱）、结算账户信息（开户银行、\n支行名称、银行卡号）、商户信息（商户名称、客服电话、经营地址、详细地址）、店铺信息（店铺名称、店铺Logo、联系电话、店铺简介）、补充信息（补充照片）\n2、企业入驻\n（1）法定代表人信息：证件类型（身份证）、姓名、证件号码、出生日期、证件有效期（区间有效/长期有效）、居住地址、性别、证件照正面照片、证件照反面照片；\n（2）经营信息：联系人信息（联系人姓名、联系人手机、联系人邮箱）、结算账户信息（开户银行、\n支行名称、对公银行卡号、开户许可证）、商户信息（商户名称、客服电话、经营地址、详细地址、营业执照电子版）、店铺信息（店铺名称、店铺Logo、联系电话、店铺简介）\n（3）企业信息：企业信息（企业名称、注册地址、详细地圳、经营范围、统一社会信用代码、营业期限（区间有效/长期有效））、补充信息（补充照片）"]
[98,null,"意见建议","支持提交意见"]

{"sheet":"店铺后台","index":1,"n_rows":45,"n_cols":4,"rows_kept":45,"cut":false,"hidden":false,"merged":[[1,1,3,1],[4,1,7,1],[8,1,10,1],[12,1,16,1],[17,1,19,1],[20,1,26,1],[27,1,32,1],[33,1,35,1],[36,1,37,1],[38,1,40,1],[41,1,44,1]]}
["序号","一级菜单","二级菜单","内容"]
[{"$f":"ROW()-1","v":1},"概览","待办事项","展示待付款订单数量、待发货订单数量、待售后订单数量、待回复订单数量"]
[2,null,"实时数据","展示更新时间、支付金额（今日、昨日、日环比）、支付订单数（今日、昨日、日环比）、支付买家数（今日、昨日、日环比）"]
[3,null,"交易趋势","展示交易趋势图：混合图表，订单金额（柱形）+订单数量（折线），时间范围：最近一个月"]
[4,"商品管理","店铺商品分类","1、分类列表：分类名称、是否显示；操作：编辑、添加子分类、删除；\n2、添加分类：分类名称、上级分类、排序、是否显示"]
[5,null,"属性模版","1、属性模板名称列表：属性模板名称、名称列表；操作：编辑、删除；\n2、添加属性模板：属性模板名称、属性项、属性值、规格项、规格值，支持添加多个属性项和规格项，每个属性项和规格项又可添加多个属性值和规格值"]
[6,null,"商品列表","1、商品列表：商品编号、商品主图、商品名称、售价、库存、销量；\n2、添加商品：商品编号、商品视频、商品图片（多张）、商品名称、商品分类、店铺商品分类、商品条码、搜索关键词、商品简述、属性模版（在模版基础上仍可增删属性项、属性值、规格项、规格值）、销售规格（统一规格/多规格）、规格明细（每种规格的成本价、市场价、库存）、是否限购（不限购/限购）、限购数量、快递运费、商品详情（添加图片/添加文本）、商品详情预览、服务说明（24小时发货/7天无理由退换货等，多选）；\n3、商品高级检索（根据商品编号、名称、商品分类）\n4、商品状态：待上架、出售中、已下架、回收站、待审核、审核失败；\n5、操作：\n（1）查看：全部商品均可查看详情\n（2）批量/上架商品：添加商品后商品状态更新为“待上架”，支持商家批量或单独上架商品，上架后商品状态更新为“待审核”，商品上架后不支持编辑、删除商品信息；平台审核通过则商品状态更新为“出售中”，审核不通过后则商品状态更新为“审核失败”；\n（3）批量/下架商品：该商品相关订单全部完成后可下架商品，且平台有下架商品的权限，下架后支持重新编辑、上架；\n（4）编辑商品：待上架、已下架的商品可修改商品信息；\n（5）批量/移入回收站：待上架、已下架的商品可移入回收站；\n（6）批量/还原商品：回收站的商品可还原至已下架；\n（7）批量/删除商品：回收站的商品、审核失败的商品可彻底删除"]
[7,null,"评价管理","1、评价订单分类：全部评价/有晒单\n2、评价列表：会员名称、评价对象、评价内容、晒图、评价等级、评价时间、是否置顶、排序、操作；\n3、操作：查看、回复、删除，可查看评价及下属的所有评论"]
[8,"订单管理","全部订单","1、全部订单列表：订单信息（订单编号、商品信息、数量、单价、下单时间）、订单金额、会员名称、收货人信息（收货人、手机号、收货地址）、物流/支付信息、订单状态、操作；\n2、物流/支付信息：在线支付/线下支付+物流配送/商家配送/无需配送\n3、订单状态：待支付、待发货、已发货、已取消、已完成、已删除；\n4、订单高级检索：根据订单编号、商品名称、支付方式、支付状态、发货状态、收货人姓名、收货人手机号、收货地址、物流公司、下单时间\n5、操作：\n（1）查看：全部订单均可查看详情\n（2）取消订单：待支付订单可取消订单，取消订单后订单状态更新为“已取消”\n（3）去发货：待发货订单可去发货，选择配送方式、物流公司、快递单号及发货商品，如果订单分开发货，系统会自动将订单拆分为不同订单，发货后订单状态更新为“已发货”\n（4）删除订单：已取消订单可删除订单，删除订单后订单状态更新为“已删除”\n（5）批量打印配送单：勾选一个或多个待发货订单批量生成配送单，生成后连接本地打印机可打印\n（6）批量发货：勾选一个或多个待发货订单批量发货，选择每个订单的配送方式、物流公司、快递单号、发货商品及数量"]
[9,null,"发货管理","1、订单列表：订单信息（订单编号、商品信息、数量、单价、下单时间）、订单金额、会员名称、收货人信息（收货人、手机号、收货地址）、物流/支付信息、订单状态、操作；\n2、订单发货状态：待发货、已发货、已完成；\n3、订单高级检索：根据订单编号、商品名称、收货人姓名、收货人手机号、收货地址、下单时间\n4、操作：\n（1）查看：全部订单均可查看详情\n（2）去发货：待发货订单可去发货，选择配送方式、物流公司、快递单号及发货商品，如果订单分开发货，系统会自动将订单拆分为不同订单，发货后订单状态更新为“已发货”\n（3）删除订单：已取消订单可删除订单，删除订单后订单状态更新为“已删除”\n（4）批量打印配送单：勾选一个或多个待发货订单批量生成配送单，生成后连接本地打印机可打印\n（5）批量发货：勾选一个或多个待发货订单批量发货，选择每个订单的配送方式、物流公司、快递单号、发货商品及数量"]
[10,null,"代客下单","1、提交订单：选择会员、商品及数量、改价（一口价、折扣、减价）、配送方式、收货地址、支付方式（在线支付/线下支付），计算价格明细；\n2、生成代客下单订单：提交后生成订单同步到“全部订单”列表，手动设置支付状态，设置为“已支付”后订单状态修改为“已完成”不走发货流程"]
[11,"售后管理","售后订单","1、显示退换货申请列表：退换货申请的订单信息（订单编号、商品信息、数量、单价）、售后编号、申请时间、退货数量、售后原因、申请类型（仅退款、退货退款）、退换状态（审核处理中、审核通过、审核未通过、待回寄、待商家收货、已完成、已取消）、操作；\n2、高级售后订单检索：支持按订单号、售后编号、申请类型、退换状态检索；\n3、操作：\n（1）查看：查看售后详情；\n（2）处理退款：支持店铺对仅退款申请进行发表留言/同意仅退款/拒绝仅退款（需填写拒绝说明）\n（3）处理退款：支持店铺对退货退款申请进行发表留言/同意退货退款/拒绝退货退款（需填写拒绝说明）\n（4）店铺确认收货：支持店铺对审批通过的退货退款申请进行确认收货"]
[12,"库存管理","库存日志","1、出入库记录类型：入库/出库\n2、商品出入库记录列表：商品名称、商品规格、变化前库存、变化后库存、变化量、变化原因、操作时间；\n3、高级检索：支持关键词（商品名称/商品规格）检索；\n4、变化原因\n（1）入库：取消订单返库存（取消订单返加库存）、新增产品规格（商品上架时设置初始库存）、删除产品规格（商品变化量为0）、库存编辑、采购入库、退货入库（买家退货返加的库存要手动录入）、其他入库\n（2）出库：下单扣减库存（买家下单时扣减库存）、库存编辑、订单出库（线下交易出库）、过期出库、其他出库"]
[13,null,"库存查询","1、商品实时库存列表：商品信息（商品主图、商品名称）、商品规格、可用库存、成本、操作（查看出入库明细）；\n2、高级检索：支持按关键词（商品名称/商品规格）检索；\n3、查看出入库明细：展示该商品或规格对应的出入库类型、出入库数量、出入库时间"]
[14,null,"商品入库","支持对商品进行入库：可对多个商品批量进行采购入库 /退货入库/其他入库，并生成入库单号"]
[15,null,"商品出库","支持对商品进行出库：可对多个商品批量进行订单出库 /过期出库 /其他出库，并生成出库单号"]
[16,null,"库存调整","支持对现有商品进行调整，增加/减少库存或覆盖库存，并生成调整明细（调整类型、调整前数量、调整后数量、调整时间）"]
[17,"销售统计","销售概览","1、订单金额统计：支持按年、月筛选统计商品支付金额、商品退款金额、营业额、订单金额统计曲线图\n2、订单数统计：支持按年、月筛选统计支付订单数、退款订单数、订单数统计曲线图"]
[18,null,"销售明细","1、支持按时间检索销售明细：商品浏览量、商品访客数、下单件数、支付金额、退款金额、退款件数、金额明细曲线图（支付金额、退款金额）、商品明细柱形图（商品浏览量）；\n2、支持按时间检索销售商品明细：商品信息（商品主图、商品名称）、商品编号、购买数量、单价、小计、下单时间"]
[19,null,"销售排行","支持按时间检索销售排行列表：商品名称、商品编号、总销量、总销售额）；\n支持按时间、关键词（商品名称/商品编号)检索"]
[20,"财务中心","资金概览","1、账户概览：可用店铺余额（订单结算完成的入账金额）、账户信息（用户名、银行卡数量）；\n2、待结算金额（交易未完成的订单总额，消费者确认收货后将自动转入店铺余额）；\n3、冻结金额（提现中或者退款中的冻结金额）；\n4、收支概况：变动时间、变动余额资金、变动冻结资金、变动原因"]
[21,null,"店铺资金","1、店铺余额：可用店铺余额、待结算、不可用余额；\n2、最近交易记录：时间、订单编号、金额明细、状态（全部/待支付/待发货/已发货/已取消/已完成/已删除）、操作（查看）"]
[22,null,"提现管理","1、提现：填写提现账户、提现金额、备注提交提现申请；\n2、提现记录列表：申请时间 、金额、手续费、手续费率、到账方式、备注、提现状态、拒绝理由；\n3、高级检索：支持按申请时间、提现状态（待审核/审核不通过/待打款/完成）检索"]
[23,null,"账户管理","添加/编辑/删除支付宝、微信、银行卡账户"]
[24,null,"对账单下载","1、支持按日、月、年筛选对账单：日期 /月份/年份、账户 、收入笔数、收入金额、支出笔数、支出金额、操作；\n2、操作：\n（1）下载报表：日期 /月份/年份、账户 、收入笔数、收入金额、支出笔数、支出金额；\n（2）查看明细：查看该日期 /月份/年份的收支明细：类型 （订单收支/订单退款/手续费）、入账时间 、店铺名称、订单编号 、 金额 、余额、支付方式；\n（3）高级检索：支持按入账时间、类型、订单编号  、支付方式检索"]
[25,null,"对账单明细","1、收支明细列表：类型 （订单收支/订单退款/手续费）、入账时间 、店铺名称、订单编号 、金额 、余额、支付方式\n2、高级检索：支持按入账时间、类型、订单编号  、支付方式检索\n3、支持批量或单独选择后导出报表"]
[26,null,"资金明细","1、店铺资金变动明细列表：账户变动时间、店铺名称、变动资金账户、冻结资金账户、变动原因；\n2、高级检索：支持按店铺名称、时间检索"]
[27,"消息中心","交易消息","新下订单提醒/订单付款提醒/订单完成提醒，点击查看订单详情，数字角标显示未读消息数"]
[28,null,"商品消息","商品库存预警/商品无货提醒/商品下架通知/商品审核通知，点击查看商品详情，数字角标显示未读消息数"]
[29,null,"售后服务","订单取消提醒/售后申请提醒/提现审核通知，点击查看详情，数字角标显示未读消息数"]
[30,null,"店铺服务","店铺入驻审核通知/店铺违规提醒，数字角标显示未读消息数"]
[31,null,"其它消息","系统消息/待办任务提醒，点击查看详情，数字角标显示未读消息数"]
[32,null,"全部已读","消息状态全部更新为已读，去除数字角标"]
[33,"客服会话","即时会话","1、会话状态：会话中（统计数量）、已结束（统计数量）；\n2、回复：支持发送文字、表情、图片；\n3、支持修改该买家的订单信息、发送本店铺商品和总结会话；\n4、转接会话：支持转接该会话至本店铺其他账号；\n5、结束会话：会话状态更新为“已结束”；\n6、支持按联系人、聊天记录检索会话；\n7、全部会话同步至历史会话"]
[34,null,"历史会话","1、历史会话列表：会员名称、接待客服、会话来源（h5）、开始时间、最后会话时间、操作；\n2、高级检索：支持时间筛选、会员名称、会话来源、会话状态检索；\n3、操作：\n（1）查看详情：查看会话的全部聊天记录及总结；\n（2）开始对话：在已结束的会话中可重新接入会话，会话状态更新为“会话中”"]
[35,null,"系统设置","设置默认的客服首句欢迎语、客服忙提醒语、客服离线提醒语"]
[36,"店铺设置","店铺信息","1、店铺管理\n（1）显示店铺资料：店铺头像、店铺名称、创建时间、店铺简介、粉丝数；\n（2）编辑店铺资料：店铺头像、店铺名称、创建时间、店铺简介；\n2、员工管理\n（1）显示员工数量：已有员工数、剩余可用名额（剩余可以创建的员工账号数量）、停用员工数"]
[37,null,"店铺设置","设置经营状态（开业/暂停运营/打烊）、客服电话、客服入口页面（商品详情页/订单详情页）"]
[39,"配送设置","物流设置","1、列表：物流公司名称、编号、物流公司描述、客户编码、月结号、网点编码、网点名称、是否启用、操作；\n2、添加物流公司：物流公司、客户编码、密码、月结号、网点编码、网点名称、快递业务类型、排序、是否显示；\n3、高级检索：支持根据物流公司名称进行搜索；\n4、操作：\n（1）编辑：编辑物流公司信息；\n（2）设为默认：选择一个设为默认物流公司，填写发货信息时不用额外选择；\n（3）解绑：取消店铺与物流公司的绑定关系"]
[40,null,"运费模版","1、支持按模版名称检索；\n2、列表内容：模版名称、是否包邮、计价方式、发货时间、是否默认、操作；\n3、添加运费模版：模版名称、发货时间、是否默认、是否包邮、计价方式（按件数/按重量）、运送方式（首件数、首费、续件数、续费、满免，支持指定地区运费）；\n4、操作：\n（1）设为默认运费模版：选择一个设为默认运费模版，填写商品物流及配送信息时不用额外填写；\n（2）编辑运费模版：修改运费模版信息；\n（3）批量/操作运费模版：支持批量删除和单独删除运费模版"]
[41,null,"配送设置","发货信息设置：发货人、发货人联系方式、发货地省份、发货城市、发货地区、发货详细地址；\n收货信息设置：收货人、收货人联系方式、收货地省份、收货城市、收货地区、收货详细地址"]
[42,"账号管理","账号设置","设置管理员账号的名称、手机号、用户头像"]
[43,null,"角色管理","创建员工角色及使用权限（角色名称、角色描述、功能权限），支持编辑和删除"]
[44,null,"员工管理","创建员工账号（员工名称、手机号、邮箱、头像、是否停用），绑定角色，支持编辑和删除"]
[45,null,"操作日志","记录全部员工的每次操作记录"]

{"sheet":"平台后台","index":2,"n_rows":52,"n_cols":4,"rows_kept":52,"cut":false,"hidden":false,"merged":[[1,1,4,1],[5,1,7,1],[9,1,12,1],[13,1,21,1],[22,1,31,1],[32,1,37,1],[38,1,41,1],[42,1,43,1],[44,1,48,1],[49,1,51,1]]}
["序号","一级菜单","二级菜单","内容"]
[{"$f":"ROW()-1","v":1},"用户统计","用户概览","展示筛选时间段内的商城访客数（统计在一段时间内访问商城的客户数量）、浏览量（根据筛选时间，商城页面被浏览的次数。每打开一个页面或每刷新一次页面都记录1次 ）、新增用户数（根据筛选时间，平台中的新增客户数）、成交用户数（根据筛选时间，平台中的成交客户数）、支付转化率（访客支付转化率 =（支付买家数 ÷ 访客数）× 100%）"]
[{"$f":"ROW()-1","v":2},null,"访问统计","展示筛选时间段内的商城访客数面积曲线图"]
[3,null,"消费排行","1、展示筛选时间段内的会员消费列表：会员名称、手机号、订单数、消费总额；\n2、排序：支持整体（不是单页）按消费总额升序或降序排列；\n3、高级检索：支持时间、会员名称或手机号检索"]
[4,null,"新增会员","展示筛选时间段内的新增会员数面积曲线图"]
[5,"商品管理","商品分类","1、列表内容：分类名称、分类图片、是否显示、是否热门、操作；\n2、添加分类：分类名称、上级分类、分类图片、排序、是否热门、是否显示；\n3、操作：\n（1）编辑商品分类：编辑一级和二级分类\n（2）批量/删除商品分类：支持批量删除和单独删除一级和二级分类，删除一级则也删除全部二级\n（3）添加子分类：一级分类下可添加子分类"]
[6,null,"商品服务","1、列表内容：服务名称、简介、图标、默认显示、操作；\n2、添加服务：服务名称、简介、图标、默认显示、排序；\n3、操作：\n（1）编辑商品服务：编辑商品服务\n（2）批量/删除商品服务：支持批量删除和单独商品服务"]
[7,null,"商品列表","1、商品列表：店铺名称、商品编号、商品主图、商品名称、售价、库存、销量、操作；\n2、商品高级检索（根据商品编号、名称、商品分类、店铺名称）\n3、商品状态：出售中、已下架、待审核、审核失败；\n4、操作：\n（1）查看详情：全部商品均可查看详情；\n（2）批量/审核商品：商品提交（商家上架）后，商品状态更新为“待审核”，支持批量或单独审核；审核通过则商品状态更新为“出售中”，审核不通过后则商品状态更新为“审核失败”；\n（3）批量/下架商品：支持批量或单独下架商品，平台或商家下架商品后商品状态更新为“已下架”"]
[8,"订单管理","售后介入","1、显示退换货申请列表：退换货申请的订单信息（订单编号、商品信息、数量、单价）、售后编号、申请时间、退货数量、售后原因、申请类型（仅退款、退货退款）、退换状态（审核处理中【买家介入后平台审核前】、审核通过【平台审核通过后】、审核未通过【平台审核不通过后】、待回寄、待商家收货、已完成、已取消）、操作；\n2、高级售后订单检索：支持按订单编号、售后编号、申请类型、退换状态检索；\n3、操作：\n（1）处理退款：支持平台对仅退款申请进行同意仅退款/拒绝仅退款（需填写拒绝说明）\n（2）处理退款：支持平台对退货退款申请进行同意退货退款/拒绝退货退款（需填写拒绝说明）"]
[9,"组织管理","入驻审核","1、商户状态：全部、待审核、审核通过、审核未通过；\n2、列表内容：申请信息（个人+个人姓名/企业+企业名称）、申请会员名称、联系人姓名、联系人电话、申请状态、申请时间、操作；\n3、高级检索：支持按关键词（会员名称）检索商户；\n4、操作：\n（1）查看详情：全部申请均可查看详情，包括基础信息、个人信息（企业信息、法人代表信息）、商户信息、店铺信息；\n（2）审核通过：在详情中对其进行审核通过操作，商户状态更新为“审核通过”，审核结果通知发送至站内消息，商户管理中会自动新增该商户，店铺管理中也会自动新增相应店铺；\n（3）审核不通过：在详情中对其进行审核不通过操作，并填写拒绝原因，商户状态更新为“审核不通过”，审核结果通知发送至站内消息"]
[10,null,"商户管理（后端添加）","1、列表内容：商户所属单位 （个人姓名/企业名称）、商户所属会员名称、商户类型（个人/企业） 、管理员名称、已绑定店铺数量 、认证状态 、认证时间 、操作\n2、高级检索：支持按商户名称检索；\n3、添加商户：以下两种主体类型二选一\n（1）个人入驻：\n         1.绑定账号：填写管理员/会员的手机号进行绑定；\n         2.个人信息：证件类型（身份证）、姓名、证件号码、出生日期、证件有效期（区间有效/长期有效）、居住地址、性别、证件照正面照片、证件照反面照片；\n         3.商户信息：商户名称、客服电话、经营地址、详细地址、联系人姓名、联系人手机、联系人邮箱、开户银行、支行名称、银行卡号，提交后默认认证状态为“正常”；\n（2）企业入驻\n         1.绑定账号：填写管理员/会员的手机号进行绑定；\n         2.法定代表人信息：证件类型（身份证）、姓名、证件号码、出生日期、证件有效期（区间有效/长期有效）、居住地址、性别、证件照正面照片、证件照反面照片、补充信息（补充照片）；\n         3.商户信息：商户名称、客服电话、经营地址、详细地址、营业执照电子版、联系人姓名、联系人手机、联系人邮箱、开户银行、支行名称、对公银行卡号、开户许可证；\n         4.企业信息：企业名称、注册地址、详细地圳、经营范围、统一社会信用代码、营业期限（区间有效/长期有效），提交后默认认证状态为“正常”；\n4、操作：查看详情（查看详情时可修改认证状态）、编辑（不支持修改绑定账号）、删除"]
[11,null,"店铺列表","1、列表内容：店铺名称、店铺头像、商户名称、店铺状态、主账号、操作；\n2、添加店铺：店铺名称、店铺头像、选择商户（商户管理中的商户），主账号即商户管理员账号，默认店铺状态为“开业”；\n3、高级检索：支持按关键词（店铺名称/商户名称/主账号、状态）检索商户；\n4、操作：\n（1）编辑：修改店铺状态（停业/开业）、店铺名称、店铺头像、店铺描述、商家电话；\n（2）主账号管理：查看主账号名称、手机号、下属店铺列表，支持修改绑定账号、账号信息、密码，修改后更新相关账号列表；\n（3）删除：删除店铺"]
[12,null,"店铺设置","设置店铺商品是否默认审核通过、店铺可配置的最大子管理员数量"]
[13,"内容管理","首页banner设置","1、列表内容：图片名称、图片、是否启用、排序操作；\n2、添加图片：图片名称、图片、是否启用、排序；\n3、高级检索：支持按图片名称、是否启用检索；\n4、操作：\n（1）编辑：修改图片名称、图片、是否启用、排序；\n（2）批量/删除图片：支持批量删除和单独删除图片"]
[null,null,"后台登录服务协议","1、后台登录时需勾选已知晓\n2、选择是否启用\n3、富文本框填写协议内容"]
[{"$f":"ROW()-1","v":15},null,"后台登录隐私协议","1、后台登录时需勾选已知晓\n2、选择是否启用\n3、富文本框填写协议内容"]
[16,null,"商城注册协议","1、前端商城注册时需勾选已知晓\n2、选择是否启用\n3、富文本框填写协议内容"]
[17,null,"商城服务协议","1、前端商城注册、登录时需勾选已知晓\n2、选择是否启用\n3、富文本框填写协议内容"]
[18,null,"商城隐私协议","1、前端商城注册时需勾选已知晓\n2、选择是否启用\n3、富文本框填写协议内容"]
[19,null,"商城入驻协议","1、前端商城入驻商家时需勾选已知晓\n2、选择是否启用\n3、富文本框填写协议内容"]
[20,null,"商城帮助中心文章分类","1、列表内容：文章分类名称、是否显示、操作；\n2、添加分类：文章分类名称、是否显示、排序；\n3、操作：编辑文章分类、批量/删除文章分类"]
[21,null,"文章列表","1、列表内容：发布时间、文章标题、文章分类、文章内容、排序、是否置顶、是否显示、操作；\n2、添加文章：发布时间、文章标题、文章分类、文章内容、排序、是否置顶、是否显示；\n3、高级检索：支持按文章标题、文章分类、是否显示检索；\n4、操作：编辑、批量/删除、批量/隐藏、批量/显示、批量/转移分类"]
[22,"财务管理","分账设置","1、分账基础设置\n（1）设置入账时间（入账时间满足，对应分账账单 触发入账结算 入账节点是订单完成（确认收货），入账时间设置10天，则代表结算时间是订单完成10天后结算）；\n（2）出账节点：下单成功/售后申请（已设置好，仅显示，不用改）；\n（3）入账节点：订单完成/确定收货（已设置好，仅显示，不用改）；\n（4）入账方式：自动入账（已设置好，仅显示，不用改）；\n（5）入账账户类型：余额（已设置好，仅显示，不用改）；\n（6）分账方式：线下分账（已设置好，仅显示，不用改）；\n2、店铺分账设置\n（1）设置通用平台服务费率：当某品类无单独设置时生效；\n（2）设置店铺提现手续费率：店铺提现时，平台将抽取的提现手续费"]
[23,null,"服务费率","1、列表内容：规则名称、适用类目、服务费率、规则状态（是否启用）、操作；\n高级检索：支持按规则名称、规则状态（启用/禁用）检索；\n2、添加规则：规则名称、选择类目（商品一级/二级分类，支持全选/清空）、服务费率、备注、规则状态（是否启用）；\n3、操作：\n（1）编辑规则：编辑规则\n（2）批量/删除规则：支持批量删除和单独规则"]
[{"$f":"ROW()-1","v":24},null,"提现设置","设置提现规则：线下收款方式（银行卡/支付宝/微信）、提现额度（多少到多少元）、提现频次（每日/每月/每年可提现多少次）、提现说明（展示在商户添加账户的详情页）"]
[25,null,"资金概览","1、所有店铺总余额：余额总结余、待结算金额、不可用余额；\n2、店铺余额排行：列表（店铺名称 、店铺LOGO 、商户名称 、店铺余额 、店铺状态）"]
[26,null,"店铺资金","1、列表内容：店铺名称 、店铺LOGO 、店铺状态、店铺资金、待结算金额、不可用资金、开店时间、操作；\n2、操作：查看资金日志\n（1）店铺资金变动明细列表：账户变动时间、店铺名称、变动资金账户、冻结资金账户、变动原因；\n（2）高级检索：支持按店铺名称、时间检索"]
[27,null,"提现管理","1、提现申请列表：申请时间 、金额、手续费、手续费率、收款人、收款账号、到账方式、备注、提现状态（待审核/审核不通过/待打款/完成）、拒绝理由、操作；\n2、高级检索：支持按申请时间、体现状态（待审核/审核不通过/待打款/完成）检索；\n3、操作：审核\n（1）审核通过，提现状态更新为“待打款”，后续上传打款凭证，提现状态更新为“完成”；\n（2）审核不通过，并填写拒绝原因，提现状态更新为“审核不通过”"]
[28,null,"提现汇总","1、列表内容：店铺名称、店铺LOGO、店铺状态、店铺剩余资金、已提现金额、待提现金额、开店时间、操作；\n2、高级检索：支持按店铺名称检索；\n3、操作：查看详情\n（1）提现明细列表：店铺名称、提现账号、提现金额、手续费、手续费率、备注、申请时间；\n（2）提现明细总计：审核中金额、已提现金额"]
[29,null,"对账单下载","1、支持按日、月、年筛选对账单：日期 /月份/年份、账户 、收入笔数、收入金额、支出笔数、支出金额、操作；\n2、操作：\n（1）下载报表：日期 /月份/年份、账户 、收入笔数、收入金额、支出笔数、支出金额；\n（2）查看明细：查看该日期 /月份/年份的收支明细：类型 （订单收支/订单退款/手续费）、入账时间 、店铺名称、订单编号 、 金额 、余额、支付方式；\n（3）高级检索：支持按入账时间、店铺名称、入账时间、类型、订单编号、支付方式检索"]
[30,null,"对账单明细","1、收支明细列表：类型 （订单收支/订单退款/手续费）、入账时间 、店铺名称、订单编号 、金额 、余额、支付方式；\n2、高级检索：支持按入账时间、类型、订单编号  、支付方式检索\n3、支持批量或单独选择后导出报表"]
[31,null,"资金日志","1、店铺资金变动明细列表：账户变动时间、店铺名称、变动资金账户、冻结资金账户、变动原因；\n2、高级检索：支持按店铺名称、时间检索"]
[32,"会员管理","会员列表","1、列表内容含：会员名称、会员等级、是否启用、累计消费次数、累计消费金额、注册日期、操作；\n2、高级检索：支持按会员信息（会员名称/手机号）检索；\n3、操作：\n（1）查看详情：查看该会员的基本信息（会员名称、会员等级、手机号）、收货信息（收货人、联系方式、收货地址）等\n（2）查看订单：查看该会员的历史订单列表\n         1.列表内容：订单信息（订单编号、商品信息、数量、单价、下单时间）、订单金额、会员名称、收货人信息（收货人、手机号、收货地址）、物流/支付信息、订单状态、操作；\n         2.高级检索：支持根据订单编号、商品名称、支付方式、支付状态、发货状态、收货人姓名、收货人手机号、收货地址、物流公司、下单时间检索\n         3.操作：查看详情"]
[33,null,"会员等级设置","1、会员等级最后支持设置10级：支持设置每个级别的会员图标、会员等级名称、升级条件（无门槛/消费满多少元）、操作（删除）\n2、设置重新计算等级的时间（1个月/3个月/6个月/12个月）"]
[{"$f":"ROW()-1","v":34},null,"会员意见建议","1、列表内容：会员名称、建议内容、图片、留言时间、操作（删除）\n2、高级检索：支持按建议内容检索"]
[35,null,"认证设置","设置是否实名后才能查看价格、审核周期"]
[36,null,"会员认证","1、列表内容含：会员名称、姓名、手机号、申请状态、申请时间、操作；\n2、高级检索：支持按会员名称、申请状态检索；\n3、操作：\n（1）查看详情：查看该会员的基本信息（会员名称、姓名、手机号、证件类型、证件号码、居住地址、出生日期、证件有效期证件照正面、证件照反面），进行审核通过/审核不通过\n（2）审核通过：在详情中对其进行审核通过操作，申请状态更新为“审核通过”，更新会员的审核状态为“已认证”，并将审核结果通知发送至站内消息；\n（3）审核不通过：在详情中对其进行审核不通过操作，并填写拒绝原因，申请状态更新为“审核不通过”，审核结果通知发送至站内消息\n（4）删除：可删除审核不通过的认证申请记录"]
[37,null,"站内公告","1、列表内容：公告标题、公告内容、发布状态、发布时间、操作（按发布时间降序排序）；\n2、添加公告：公告标题、公告内容；\n3、高级检索：支持按公告标题、发布状态检索；\n4、操作：\n（1）编辑：支持编辑发布前或撤回前的公告；\n（2）批量/删除：支持批量或单独删除发布前或撤回前的公告；\n（3）批量/发布：发布后更新发布时间和状态并发送至站内消息，发布后可撤回；\n（4）批量/撤回：撤回后可重新修改、删除、发布"]
[38,"商城设置","备案信息","设置ICP备案号、ICP备案链接、公安备案号、公安备案链接"]
[39,null,"商品设置","1、商品货币设置：商品货币符、商品货币中文；\n2、商品录入设置：商品编号前缀、商品名称长度、市场价换算；\n3、商品信息显示设置：是否显示销量、是否显示市场价"]
[40,null,"订单设置","1、基础设置：发货后自动确认收货时间、未付款订单自动取消时间、自动同意退货申请、买家申请售后限制；\n2、售后设置：买家申请售后限制时间、是否开启售后审核、自动同意退货申请开启/关闭、买家退货后系统自动确认售后时间；\n3、平台管理订单流转设置：已支付订单可取消订单"]
[41,null,"个性化设置","设置移动端会员的默认头像"]
[42,"配送设置","物流公司","1、列表内容：物流公司名称、是否启用、操作；\n2、添加物流公司：物流公司名称、排序、是否热门；\n3、高级检索：支持按物流公司名称检索；\n3、操作：\n（1）编辑物流公司：编辑物流公司\n（2）批量/删除物流公司：支持批量删除和单独删除物流公司"]
[43,null,"地区管理（用于运费模版）","1、列表内容：地区名称、操作；\n2、添加地区：地区名称、上级地区（顶级地区）、排序；\n3、操作：\n（1）子地区：展示该地区的子地区列表（地区名称、操作）；\n（2）添加子地区；地区名称、上级地区、排序；\n（3）批量/删除：批量或单独删除地区或子地区"]
[{"$f":"ROW()-1","v":44},"权限管理","权限目录","1、显示：管理后台权限列表、店铺后台权限列表\n2、操作：修改是否显示、排序等"]
[45,null,"角色列表","1、列表内容：角色名称、描述、操作；\n2、添加角色：角色名称、描述、权限选择（支持全选、全不选、个别选择）；\n3、高级检索：支持按角色名称检索；\n4、操作：\n（1）编辑：修改角色；\n（2）批量/删除：批量或单独删除角色"]
[46,null,"管理员列表","1、列表内容：管理员名称、手机号、邮箱、角色名称、添加时间、操作；\n2、添加管理员：管理员名称、手机号、邮箱、头像、角色名称；\n3、高级检索：支持按管理员名称检索；\n4、操作：\n（1）编辑：修改管理员；\n（2）批量/删除：批量或单独删除管理员"]
[47,null,"账号管理","1、列表内容：账号名称、手机号、邮箱、店铺数、操作；\n3、高级检索：支持按账号名称检索；\n4、操作：\n（1）修改账号：修改账号名称、手机号、邮箱；\n（2）修改密码：修改密码，确认新密码；\n（3）删除账号：删除该账号及下属所有账号；"]
[48,null,"操作日志","记录管理员账号的所有操作日期，列表内容：操作者、IP地址、操作时间、操作记录"]
[49,"消息中心","售后服务","提现申请通知，点击查看详情，数字角标显示未读消息数"]
[50,null,"店铺服务","店铺入驻申请通知/店铺资质修改提醒，数字角标显示未读消息数"]
[51,null,"全部已读","消息状态全部更新为已读，去除数字角标"]